fUSD/lending_fUSD_20240412
["ID","MTS","AMOUNT","RATE_DAILY","PERIOD"]
[322272644,1712926239954,-160.31,0.00025764,2]
[322272647,1712926239963,-2218.39037278,0.00025773,2]
[322272648,1712926239973,-156.305592,0.00025796,2]
[322272650,1712926239983,-161.37326808,0.00025796,2]
[322272652,1712926239993,-162.5270178,0.00025796,2]
[322272654,1712926240002,-155.0,0.00025796,2]
[322272656,1712926240010,-155.0,0.00025796,2]
[322272658,1712926240020,-859.15166946,0.00025796,2]
[322272660,1712926240029,-246.21167352,0.00025797,2]
[322272662,1712926240039,-1000.0,0.00025798,2]
[322272665,1712926240048,-545322.76692099,0.00025865,2]
[322272667,1712926240057,-160.31,0.00025866,2]
[322272669,1712926240067,-160.31,0.00025967,2]
[322272672,1712926240076,-160.31,0.00026068,2]
[322272674,1712926240086,-160.31,0.00026169,2]
[322272676,1712926240095,-160.31,0.00026271,2]
[322272677,1712926240104,-268.98448994,0.00026339,2]
[322272679,1712926240113,-158.76426366,0.0002634,2]
[322272682,1712926240123,-3670.75004519,0.0002634,2]
[322272684,1712926240132,-876.10451555,0.0002634,2]
[322272686,1712926240141,-160.31,0.00026372,2]
[322272688,1712926240151,-173.4,0.00026418,2]
[322272690,1712926240160,-160.31,0.00026473,2]
[322272693,1712926240170,-160.31,0.00026574,2]
[322272696,1712926240179,-560.01,0.00026916,2]
[322272699,1712926240188,-210.0,0.0002725,2]
[322272702,1712926240196,-161.88,0.00027397,2]
[322272705,1712926240206,-1461.91,0.00027594,2]
[322272708,1712926240215,-2500.0,0.00027594,2]
[322272711,1712926240224,-4260.1877869,0.00027594,2]
[322272714,1712926240234,-1042.38470398,0.00027594,2]
[322272717,1712926240243,-325.2840826,0.00027692,2]
[322272720,1712926240252,-527.25970917,0.00027692,2]
[322272723,1712926240262,-155.44292919,0.00027692,2]
[322272726,1712926240271,-155.48232616,0.00027693,2]
[322272729,1712926240280,-155.0,0.00027693,2]
[322272732,1712926240289,-23985.55231227,0.00027694,2]
[322272735,1712926240297,-326.2319,0.00027695,2]
[322272738,1712926240306,-5967.0871,0.00027695,2]
[322272741,1712926240315,-263.5979,0.00027695,2]
[322272744,1712926240324,-184.24281593,0.000277,2]
[322272746,1712926240333,-233.35411686,0.00027793,2]
[322272750,1712926240342,-1248.5,0.00027795,2]
[322272754,1712926240351,-298.209,0.00027796,2]
[322272757,1712926240361,-427.09027107,0.00027797,2]
[322272761,1712926240371,-306.21067853,0.00027798,2]
[322272764,1712926240381,-178.23121329,0.00027798,2]
[322272766,1712926240391,-155.38304299,0.00027798,2]
[322272768,1712926240400,-78158.1054,0.000278,2]
[322272770,1712926240409,-500.0,0.000278,2]
[322272772,1712926240419,-4000.0,0.00027945,5]
[322272774,1712926240430,-175.62,0.00028518,2]
[322272776,1712926240439,-2673.32639618,0.00028823,4]
[322272778,1712926240448,-6746.82289371,0.00029,2]
[322272780,1712926240456,-150.92,0.00029,2]
[322272782,1712926240465,-150.92,0.00029,2]
[322272784,1712926240474,-1000.0,0.00029023,2]
[322272786,1712926240483,-560.01,0.0002918,2]
[322272788,1712926240493,-293.0,0.00029975,2]
[322272790,1712926240502,-4260.18778682,0.00030061,2]
[322272792,1712926240511,-670.0,0.00030137,2]
[322272794,1712926240521,-180.0,0.00030258,2]
[322272796,1712926240530,-1019.8353,0.00030399,2]
[322272798,1712926240539,-1248.5,0.00030535,2]
[322272800,1712926240548,-560.01,0.00031444,2]
[322272802,1712926240558,-670.0,0.00031507,2]
[322272804,1712926240567,-197.2,0.00031644,2]
[322272806,1712926240577,-184.24281591,0.00032,2]
[322272808,1712926240586,-332.95119539,0.00032,4]
[322272810,1712926240596,-1000.0,0.00032247,2]
[322272812,1712926240606,-150.92,0.00032519,2]
[322272814,1712926240615,-4260.18778682,0.00032529,2]
[322272816,1712926240624,-611.07740058,0.000326,20]
[322272817,1712926240634,-7954.89,0.00032603,2]
[322272819,1712926240644,-7606.16,0.00032603,2]
[322272822,1712926240654,-670.0,0.00032876,2]
[322272823,1712926240664,-150.0,0.00032877,2]
[322272826,1712926240682,-170.3395982,0.00032877,30]
[322272828,1712926240692,-1112.75465511,0.00032996,2]
[322272830,1712926240702,-154.57743464,0.00033073,7]
[322272832,1712926240713,-154.26775918,0.00033113,7]
[322272834,1712926240722,-157.43248173,0.00033207,7]
[322272836,1712926240732,-156.62444705,0.00033298,4]
[322272838,1712926240741,-155.44351897,0.00033298,4]
[322272840,1712926240751,-181.8,0.000333,2]
[322272842,1712926240761,-181.8,0.000333,2]
[322272844,1712926240771,-181.8,0.000333,2]
[322272846,1712926240781,-181.8,0.000333,2]
[322272848,1712926240791,-181.8,0.000333,2]
[322272850,1712926240800,-181.8,0.000333,2]
[322272852,1712926240810,-181.8,0.000333,2]
[322272854,1712926240819,-181.8,0.000333,2]
[322272856,1712926240828,-181.8,0.000333,2]
[322272858,1712926240838,-181.8,0.000333,2]
[322272860,1712926240847,-181.8,0.000333,2]
[322272862,1712926240856,-181.8,0.000333,2]
[322272864,1712926240866,-153.24126343,0.00033329,7]
[322272866,1712926240875,-153.24126343,0.00033382,7]
[322272868,1712926240885,-998.74,0.000334,2]
[322272870,1712926240894,-153.24126343,0.00033436,7]
[322272872,1712926240903,-154.14042621,0.00033466,7]
[322272874,1712926240913,-150.92,0.0003349,2]
[322272875,1712926240928,-154.26775918,0.00033497,7]
[322272878,1712926240938,-3037.8,0.000335,2]
[322272880,1712926240947,-3037.8,0.000335,2]
[322272882,1712926240956,-3037.8,0.000335,2]
[322272884,1712926240965,-3037.8,0.000335,2]
[322272886,1712926240974,-3037.8,0.000335,2]
[322272887,1712926240983,-3037.8,0.000335,2]
[322272889,1712926240992,-3037.8,0.000335,2]
[322272891,1712926241001,-3037.8,0.000335,2]
[322272893,1712926241011,-3037.8,0.000335,2]
[322272895,1712926241020,-3037.8,0.000335,2]
[322272897,1712926241029,-3037.8,0.000335,2]
[322272899,1712926241039,-3037.8,0.000335,2]
[322272901,1712926241048,-3037.8,0.000335,2]
[322272903,1712926241057,-3037.8,0.000335,2]
[322272905,1712926241067,-3037.8,0.000335,2]
[322272907,1712926241076,-3037.8,0.000335,2]
[322272909,1712926241085,-3037.8,0.000335,2]
[322272912,1712926241094,-3037.8,0.000335,2]
[322272914,1712926241103,-3037.8,0.000335,2]
[322272916,1712926241113,-3037.8,0.000335,2]
[322272918,1712926241122,-154.26775918,0.00033526,7]
[322272920,1712926241131,-154.26775918,0.00033619,7]
[322272922,1712926241141,-560.01,0.00033708,2]
[322272924,1712926241149,-154.14042621,0.00033738,7]
[322272926,1712926241158,-150.0,0.00033742,2]
[322272928,1712926241170,-154.57743464,0.0003375,7]
[322272930,1712926241179,-154.53423204,0.00033828,7]
[322272931,1712926241188,-154.95930831,0.00033881,7]
[322272934,1712926241198,-156.33363119,0.00033906,7]
[322272936,1712926241207,-153.88565636,0.00033944,7]
[322272937,1712926241216,-153.99568916,0.0003403,7]
[322272939,1712926241225,-154.95930831,0.00034043,7]
[322272941,1712926241234,-156.08416384,0.00034083,7]
[322272943,1712926241243,-342.34435101,0.00034092,2]
[322272945,1712926241253,-998.74,0.000341,2]
[322272947,1712926241262,-307.66,0.000341,2]
[322272950,1712926241272,-670.0,0.00034246,2]
[322272951,1712926241281,-153.24126343,0.00034255,7]
[322272954,1712926241290,-151.0,0.00034359,2]
[322272956,1712926241300,-154.26775918,0.00034414,7]
[322272958,1712926241310,-153.88565636,0.00034417,7]
[322272960,1712926241320,-150.0,0.00034548,10]
[322272962,1712926241329,-154.53423204,0.00034574,7]
[322272964,1712926241338,-154.30704408,0.00034586,7]
[322272965,1712926241348,-150.0,0.00034607,2]
[322272967,1712926241357,-154.95930831,0.00034664,7]
[322272970,1712926241367,-154.53423204,0.0003468,7]
[322272971,1712926241376,-200.23539209,0.00034742,2]
[322272973,1712926241386,-998.74,0.00034755,2]
[322272975,1712926241397,-165.94,0.00034781,2]
[322272978,1712926241407,-15277.67694784,0.000348,14]
[322272979,1712926241419,-500.0,0.00034817,30]
[322272981,1712926241428,-414.1438,0.0003482,2]
[322272983,1712926241437,-153.24126343,0.00034884,7]
[322272985,1712926241446,-154.53423204,0.0003489,7]
[322272987,1712926241455,-20000.0,0.000349,3]
[322272989,1712926241463,-154.53453383,0.00034918,13]
[322272992,1712926241473,-154.53453383,0.00034918,13]
[322272994,1712926241484,-154.53453383,0.00034918,13]
[322272996,1712926241493,-1124.211316,0.00034918,2]
[322272997,1712926241502,-153.24126343,0.00034962,7]
[322273000,1712926241511,-4260.18778682,0.00034996,2]
[322273001,1712926241521,-1000.0,0.00035,2]
[322273003,1712926241532,-155.67762889,0.00035059,7]
[322273005,1712926241542,-500.0,0.0003509,30]
[322273007,1712926241552,-154.53423204,0.00035127,7]
[322273009,1712926241561,-150.92,0.00035136,2]
[322273011,1712926241570,-2867.13513402,0.00035146,2]
[322273013,1712926241580,-154.26775918,0.00035175,7]
[322273015,1712926241590,-895.97,0.00035259,2]
[322273016,1712926241600,-155.67762889,0.00035273,7]
[322273017,1712926241609,-586.79,0.00035288,15]
[322273018,1712926241619,-500.0,0.00035363,30]
[322273019,1712926241628,-307.66,0.00035365,2]
[322273020,1712926241639,-154.95930831,0.00035396,7]
[322273021,1712926241648,-153.24126343,0.00035416,7]
[322273022,1712926241658,-153.24126343,0.00035422,7]
[322273023,1712926241673,-153.24126343,0.00035437,7]
[322273025,1712926241683,-998.74,0.00035455,2]
[322273027,1712926241692,-174.67147129,0.0003546,2]
[322273029,1712926241701,-153.24126343,0.00035467,7]
[322273031,1712926241710,-1000.0,0.00035472,2]
[322273033,1712926241719,-150.0,0.00035472,2]
[322273035,1712926241728,-155.67762889,0.0003549,7]
[322273037,1712926241737,-154.95930831,0.00035528,7]
[322273039,1712926241747,-153.24126343,0.00035528,7]
[322273041,1712926241756,-155.67762889,0.00035532,7]
[322273043,1712926241765,-150.0,0.0003555,2]
[322273045,1712926241774,-166.66666667,0.00035556,7]
[322273047,1712926241783,-150.0,0.00035582,2]
[322273049,1712926241793,-3000.0,0.000356,2]
[322273051,1712926241802,-150.0,0.00035616,2]
[322273053,1712926241811,-670.0,0.00035616,2]
[322273055,1712926241820,-319.3484212,0.00035616,2]
[322273057,1712926241830,-150.0,0.00035618,2]
[322273059,1712926241839,-500.0,0.00035637,30]
[322273061,1712926241849,-154.95930831,0.00035648,7]
[322273063,1712926241859,-150.0,0.00035688,2]
[322273065,1712926241869,-1112.75465511,0.00035697,2]
[322273067,1712926241878,-162.63437052,0.00035739,7]
[322273069,1712926241888,-150.0,0.00035747,2]
[322273071,1712926241897,-150.0,0.00035762,2]
[322273073,1712926241907,-154.95930831,0.00035764,7]
[322273075,1712926241916,-150.0,0.00035766,2]
[322273078,1712926241929,-150.0,0.00035792,2]
[322273080,1712926241939,-2100.0,0.000358,7]
[322273082,1712926241949,-150.0,0.000358,7]
[322273084,1712926241958,-150.0,0.0003581,2]
[322273086,1712926241967,-500.0,0.0003591,30]
[322273088,1712926241977,-153.99568916,0.00035928,7]
[322273090,1712926241986,-560.01,0.00035972,2]
[322273092,1712926241995,-154.26775918,0.00036003,7]
[322273094,1712926242004,-150.0,0.00036029,2]
[322273096,1712926242012,-150.0,0.00036044,2]
[322273097,1712926242021,-154.26775918,0.00036047,7]
[322273099,1712926242031,-998.74,0.0003611,2]
[322273101,1712926242041,-152.32027783,0.0003615,7]
[322273103,1712926242050,-150.0,0.00036156,2]
[322273105,1712926242059,-500.0,0.00036183,30]
[322273108,1712926242068,-154.14042621,0.00036188,7]
[322273110,1712926242078,-155.67762889,0.00036213,7]
[322273112,1712926242087,-153.24126343,0.00036215,7]
[322273113,1712926242096,-150.0,0.00036224,2]
[322273115,1712926242106,-188.48061016,0.00036251,4]
[322273117,1712926242116,-983.2521172,0.00036254,2]
[322273120,1712926242126,-157.19502031,0.00036256,4]
[322273122,1712926242135,-150.0,0.00036265,2]
[322273124,1712926242144,-153.24126343,0.00036278,7]
[322273126,1712926242153,-184.24281591,0.000363,2]
[322273128,1712926242162,-151.05662621,0.0003631,7]
[322273130,1712926242174,-150.0,0.00036337,2]
[322273131,1712926242183,-150.0,0.00036343,2]
[322273133,1712926242193,-151.05662621,0.00036352,7]
[322273136,1712926242202,-150.0,0.00036449,2]
[322273138,1712926242212,-516.07,0.00036456,30]
[322273140,1712926242222,-154.53423204,0.00036459,7]
[322273142,1712926242231,-150.0,0.00036506,2]
[322273143,1712926242241,-155.67762889,0.00036508,7]
[322273146,1712926242250,-150.92,0.00036549,2]
[322273148,1712926242259,-2288.0,0.00036559,2]
[322273150,1712926242268,-1389.0,0.00036559,2]
[322273152,1712926242278,-966.0,0.00036559,2]
[322273154,1712926242288,-460.0,0.00036559,2]
[322273156,1712926242297,-438.7,0.00036559,2]
[322273157,1712926242306,-616.619,0.00036559,2]
[322273160,1712926242316,-1157.879,0.00036559,2]
[322273161,1712926242325,-3063.979,0.00036559,2]
[322273163,1712926242335,-151.519,0.00036559,2]
[322273166,1712926242344,-439.715,0.00036559,2]
[322273167,1712926242354,-1490.258,0.00036559,2]
[322273169,1712926242364,-151.368,0.00036559,2]
[322273171,1712926242373,-2470.738,0.00036559,2]
[322273173,1712926242382,-1658.176,0.00036559,2]
[322273175,1712926242391,-354.0,0.00036559,2]
[322273177,1712926242401,-37570.0,0.00036559,2]
[322273179,1712926242410,-1339.105,0.00036559,2]
[322273181,1712926242421,-5715.0,0.00036559,2]
[322273184,1712926242431,-4799.0,0.00036559,2]
[322273186,1712926242440,-2463.0,0.00036559,2]
[322273188,1712926242449,-1059.626,0.00036559,2]
[322273190,1712926242458,-155.67762889,0.00036589,7]
[322273192,1712926242468,-251.08783605,0.00036628,4]
[322273194,1712926242477,-307.66,0.0003663,2]
[322273196,1712926242485,-155.67762889,0.00036655,7]
[322273198,1712926242495,-153.88565636,0.00036661,7]
[322273200,1712926242506,-154.53423204,0.00036686,7]
[322273202,1712926242515,-1000.0,0.00036703,15]
[322273204,1712926242524,-500.0,0.00036703,10]
[322273206,1712926242534,-500.0,0.00036703,10]
[322273208,1712926242543,-200.0,0.00036704,10]
[322273210,1712926242552,-200.0,0.00036704,10]
[322273212,1712926242562,-1000.0,0.00036704,15]
[322273214,1712926242571,-500.0,0.00036704,10]
[322273216,1712926242581,-362.331097,0.00036704,10]
[322273218,1712926242593,-500.0,0.00036704,10]
[322273220,1712926242603,-200.0,0.00036704,10]
[322273223,1712926242612,-150.0,0.00036721,2]
[322273225,1712926242623,-150.0,0.00036736,2]
[322273226,1712926242633,-150.0,0.00036738,2]
[322273228,1712926242642,-150.0,0.0003674,2]
[322273231,1712926242652,-150.0,0.00036745,2]
[322273233,1712926242662,-150.0,0.0003675,2]
[322273235,1712926242674,-150.0,0.0003675,2]
[322273237,1712926242684,-150.0,0.0003675,2]
[322273239,1712926242693,-154.53423204,0.00036757,7]
[322273241,1712926242703,-154.26775918,0.00036762,7]
[322273243,1712926242712,-150.0,0.00036766,2]
[322273245,1712926242722,-150.0,0.00036773,2]
[322273247,1712926242731,-150.0,0.00036775,2]
[322273249,1712926242740,-150.0,0.00036785,2]
[322273251,1712926242749,-150.0,0.00036785,2]
[322273253,1712926242759,-150.0,0.00036789,2]
[322273255,1712926242768,-150.0,0.00036798,2]
[322273257,1712926242777,-150.0,0.00036803,2]
[322273259,1712926242786,-150.0,0.00036805,2]
[322273261,1712926242795,-150.0,0.0003681,2]
[322273263,1712926242804,-998.74,0.0003681,2]
[322273265,1712926242813,-150.0,0.00036811,2]
[322273267,1712926242823,-154.53423204,0.00036814,7]
[322273269,1712926242832,-150.0,0.00036817,2]
[322273271,1712926242841,-150.0,0.00036818,2]
[322273273,1712926242850,-150.0,0.00036826,2]
[322273275,1712926242859,-150.0,0.00036827,2]
[322273277,1712926242869,-150.0,0.00036831,2]
[322273278,1712926242878,-150.0,0.00036832,2]
[322273281,1712926242888,-150.0,0.00036839,2]
[322273283,1712926242897,-150.0,0.00036849,2]
[322273284,1712926242907,-150.0,0.00036853,2]
[322273286,1712926242917,-150.0,0.00036855,2]
[322273288,1712926242928,-150.0,0.00036859,2]
[322273290,1712926242937,-150.0,0.00036861,2]
[322273292,1712926242946,-150.0,0.00036866,2]
[322273294,1712926242955,-150.0,0.00036871,2]
[322273297,1712926242965,-150.0,0.00036888,2]
[322273299,1712926242974,-155.49360499,0.00036888,2]
[322273301,1712926242984,-150.0,0.00036889,2]
[322273303,1712926242994,-154.53423204,0.00036893,7]
[322273305,1712926243003,-150.0,0.00036896,2]
[322273307,1712926243011,-150.0,0.00036898,2]
[322273309,1712926243021,-173.15760461,0.00036899,2]
[322273311,1712926243031,-384.0,0.000369,5]
[322273312,1712926243041,-1819.0697,0.000369,2]
[322273314,1712926243050,-287.29834524,0.000369,2]
[322273318,1712926243059,-287.29834522,0.000369,2]
[322273321,1712926243069,-287.29834522,0.000369,2]
[322273324,1712926243079,-287.29834522,0.000369,2]
[322273327,1712926243087,-287.29834522,0.000369,2]
[322273329,1712926243097,-287.29834522,0.000369,2]
[322273332,1712926243106,-287.29834522,0.000369,2]
[322273335,1712926243115,-287.29834522,0.000369,2]
[322273338,1712926243124,-287.29834522,0.000369,2]
[322273339,1712926243134,-287.29834522,0.000369,2]
[322273341,1712926243143,-287.29834522,0.000369,2]
[322273344,1712926243152,-287.29834522,0.000369,2]
[322273346,1712926243161,-210.98240875,0.000369,11]
[322273348,1712926243172,-150.0,0.00036903,2]
[322273351,1712926243181,-150.0,0.00036914,2]
[322273353,1712926243190,-150.0,0.00036914,2]
[322273356,1712926243200,-150.0,0.00036916,2]
[322273359,1712926243209,-150.0,0.00036917,2]
[322273362,1712926243219,-150.0,0.00036917,2]
[322273363,1712926243229,-150.0,0.00036919,2]
[322273366,1712926243239,-150.0,0.0003692,2]
[322273368,1712926243248,-150.0,0.00036923,2]
[322273370,1712926243258,-150.0,0.00036929,2]
[322273372,1712926243267,-166.81018583,0.00036929,7]
[322273374,1712926243276,-150.0,0.0003693,2]
[322273376,1712926243286,-150.0,0.00036934,2]
[322273378,1712926243295,-313.92,0.00036935,2]
[322273382,1712926243305,-150.0,0.00036938,2]
[322273384,1712926243314,-150.0,0.00036939,2]
[322273386,1712926243324,-380.01,0.00036943,2]
[322273388,1712926243333,-150.0,0.00036944,2]
[322273389,1712926243343,-150.0,0.00036947,2]
[322273391,1712926243352,-380.0,0.00036948,2]
[322273393,1712926243362,-150.0,0.00036949,2]
[322273421,1712926243540,-150.0,0.0003695,2]
[322273424,1712926243550,-150.0,0.00036952,2]
[322273426,1712926243561,-150.0,0.00036955,2]
[322273428,1712926243570,-379.99,0.00036957,2]
[322273430,1712926243581,-379.99,0.00036959,2]
[322273432,1712926243592,-380.0,0.00036963,2]
[322273434,1712926243604,-150.0,0.00036966,2]
[322273436,1712926243614,-240.3,0.0003697,15]
[322273438,1712926243623,-486.0,0.0003697,15]
[322273440,1712926243632,-150.5,0.0003697,15]
[322273442,1712926243643,-150.0,0.00036972,2]
[322273444,1712926243653,-150.0,0.00036975,2]
[322273446,1712926243663,-150.5,0.0003698,15]
[322273448,1712926243674,-150.5,0.0003698,15]
[322273450,1712926243683,-486.0,0.0003698,15]
[322273452,1712926243694,-150.0,0.00036983,2]
[322273454,1712926243703,-150.0,0.00036985,2]
[322273456,1712926243713,-670.0,0.00036986,7]
[322273458,1712926243722,-800.0,0.00036986,2]
[322273460,1712926243732,-150.92,0.00036987,2]
[322273462,1712926243742,-307.49797644,0.00036989,2]
[322273464,1712926243754,-150.5,0.0003699,15]
[322273466,1712926243763,-150.5,0.0003699,15]
[322273469,1712926243774,-486.0,0.0003699,15]
[322273471,1712926243783,-150.0,0.0003699,2]
[322273473,1712926243792,-150.92,0.0003699,2]
[322273474,1712926243802,-150.92,0.0003699,2]
[322273476,1712926243811,-150.92,0.0003699,2]
[322273479,1712926243821,-150.92,0.0003699,2]
[322273481,1712926243831,-150.92,0.0003699,2]
[322273483,1712926243840,-150.92,0.0003699,2]
[322273485,1712926243850,-150.92,0.0003699,2]
[322273487,1712926243859,-150.92,0.0003699,2]
[322273489,1712926243868,-150.92,0.0003699,2]
[322273491,1712926243878,-150.92,0.0003699,2]
[322273493,1712926243888,-150.92,0.0003699,2]
[322273495,1712926243897,-150.92,0.0003699,2]
[322273497,1712926243907,-150.92,0.0003699,2]
[322273499,1712926243916,-150.92,0.0003699,2]
[322273501,1712926243927,-150.92,0.0003699,2]
[322273503,1712926243937,-150.92,0.0003699,2]
[322273505,1712926243947,-263.23157217,0.00036991,4]
[322273507,1712926243956,-784.98323326,0.00036992,4]
[322273509,1712926243966,-150.0,0.00036992,2]
[322273511,1712926243976,-340.60320597,0.00036994,4]
[322273513,1712926243986,-210.24561399,0.00036996,4]
[322273515,1712926243996,-155.0,0.00036996,4]
[322273517,1712926244006,-3952.61502071,0.00036996,4]
[322273519,1712926244017,-2602.76416513,0.00036996,4]
[322273521,1712926244027,-155.0,0.00036996,4]
[322273523,1712926244037,-853.82148832,0.00036997,4]
[322273525,1712926244047,-4589.7725687,0.00036997,2]
[322273527,1712926244056,-233.8507701,0.00036997,2]
[322273529,1712926244066,-31159.6883461,0.00036997,2]
[322273531,1712926244075,-1259.7670928,0.00036997,2]
[322273532,1712926244085,-282.97940883,0.00036998,4]
[322273533,1712926244094,-17535.92529597,0.00036998,2]
[322273534,1712926244103,-1353.91034995,0.00036998,2]
[322273535,1712926244112,-201.50024121,0.00036998,4]
[322273536,1712926244122,-491.27614108,0.00036998,4]
[322273537,1712926244131,-1773.93631488,0.00036998,4]
[322273538,1712926244140,-1762.27300257,0.00036998,4]
[322273539,1712926244150,-150.0,0.00036998,2]
[322273540,1712926244159,-5832.36659362,0.00036999,2]
[322273542,1712926244168,-460.92429822,0.00037,2]
[322273544,1712926244178,-417218.96333129,0.00037,5]
[322273558,1712926244417,-6968.70000002,0.00037,5]
[322273560,1712926244430,-288.34094637,0.00037,5]
[322273566,1712926244572,-337.61080595,0.00025765,2]
[322273567,1712926244582,-1162.34851479,0.00037,5]
[322273568,1712926244687,-32055.84348004,0.00037,5]
[322273569,1712926244698,-1702.39999985,0.00037,5]
[322273570,1712926244710,-3058.75176597,0.00037,5]
[322273571,1712926244722,-1073.10033886,0.00037,5]
[322273572,1712926244735,-1464.85383896,0.00037,5]
[322273573,1712926244747,-315.6,0.00037,5]
[322273574,1712926244760,-6525.904427,0.00037,5]
[322273575,1712926244772,-991.10052887,0.00037,5]
[322273576,1712926244784,-599111.24935093,0.00037,5]
[322273577,1712926244793,-1603.32385558,0.00037,5]
[322273578,1712926244803,-155.0,0.00037,2]
[322273579,1712926244813,-169.31939491,0.00037,2]
[322273580,1712926244823,-155.0,0.00037,2]
[322273581,1712926244832,-156.80512559,0.00037,2]
[322273582,1712926244842,-250.87351304,0.00037,4]
[322273583,1712926244852,-2177.33987,0.00037,2]
[322273584,1712926244861,-154.936025,0.00037082,2]
[322273585,1712926244871,-418.545252,0.00037082,2]
[322273586,1712926244881,-166.059866,0.00037082,2]
[322273587,1712926244891,-329.239055,0.00037082,2]
[322273588,1712926244901,-889.408661,0.00037082,2]
[322273589,1712926244910,-163.394115,0.00037082,2]
[322273590,1712926244920,-195.364549,0.00037082,2]
[322273591,1712926244929,-153.681844,0.00037082,2]
[322273592,1712926244938,-181.8,0.000371,3]
[322273593,1712926244948,-181.8,0.000371,3]
[322273594,1712926244957,-181.8,0.000371,3]
[322273595,1712926244967,-181.8,0.000371,3]
[322273596,1712926244977,-181.8,0.000371,3]
[322273597,1712926244986,-181.8,0.000371,3]
[322273598,1712926244997,-181.8,0.000371,3]
[322273599,1712926245006,-181.8,0.000371,3]
[322273600,1712926245015,-181.8,0.000371,3]
[322273601,1712926245025,-181.8,0.000371,3]
[322273602,1712926245035,-181.8,0.000371,3]
[322273603,1712926245045,-181.8,0.000371,3]
[322273604,1712926245054,-181.8,0.000371,3]
[322273605,1712926245063,-181.8,0.000371,3]
[322273606,1712926245072,-181.8,0.000371,3]
[322273607,1712926245082,-181.8,0.000371,3]
[322273608,1712926245092,-181.8,0.000371,3]
[322273609,1712926245102,-181.8,0.000371,3]
[322273610,1712926245111,-181.8,0.000371,3]
[322273611,1712926245120,-181.8,0.000371,3]
[322273612,1712926245130,-181.8,0.000371,3]
[322273613,1712926245139,-181.8,0.000371,3]
[322273614,1712926245150,-181.8,0.000371,3]
[322273615,1712926245161,-181.8,0.000371,3]
[322273616,1712926245172,-187.776789,0.00037139,2]
[322273617,1712926245181,-239.516629,0.00037139,2]
[322273618,1712926245191,-155.67762889,0.00037175,7]
[322273619,1712926245200,-150.0,0.00037203,2]
[322273620,1712926245210,-3037.8,0.000373,3]
[322273621,1712926245219,-3037.8,0.000373,3]
[322273622,1712926245229,-3037.8,0.000373,3]
[322273623,1712926245239,-3037.8,0.000373,3]
[322273624,1712926245248,-3037.8,0.000373,3]
[322273625,1712926245257,-3037.8,0.000373,3]
[322273626,1712926245267,-3037.8,0.000373,3]
[322273627,1712926245277,-3037.8,0.000373,3]
[322273628,1712926245286,-3037.8,0.000373,3]
[322273629,1712926245295,-3037.8,0.000373,3]
[322273630,1712926245305,-3037.8,0.000373,3]
[322273631,1712926245314,-3037.8,0.000373,3]
[322273632,1712926245324,-3037.8,0.000373,3]
[322273633,1712926245333,-3037.8,0.000373,3]
[322273634,1712926245342,-3037.8,0.000373,3]
[322273635,1712926245351,-3037.8,0.000373,3]
[322273636,1712926245361,-3037.8,0.000373,3]
[322273637,1712926245371,-3037.8,0.000373,3]
[322273638,1712926245380,-3037.8,0.000373,3]